Workbook

Sheet 試算表利用時の注意点

Sheet 保険料の概要 (hidden)
AH3: =TODAY() -> 2026-06-10
B5: 年齢区分 | F5: 「加入しない」、又は加入される方の年齢区分「未就学児」、「小学生から高校生世代まで」、「１８歳から３９歳まで」、「４０歳から６４歳まで」、「６５歳から７４歳まで」を選択して下さい。
B6: 収入額等 | F6: 年齢区分選択後、色のかわったセルに給与収入額、年金収入額、その他所得額を入力して下さい。 収入額については、各種控除前の金額を入力して下さい。 その他所得額については、営業所得、不動産所得等の合計額を入力して下さい。 世帯主については、「加入しない」の場合でも必ず収入額等を入力して下さい。 （※世帯主とは住民票上の世帯主のことをいいます。）
F8: 年齢区分 | P8: =DBCS(パラメーター!E11-1)&"年中の給与収入額" -> ７年中の給与収入額 | X8: =DBCS(パラメーター!E11-1)&"年中の年金収入額" -> ７年中の年金収入額 | AF8: =DBCS(パラメーター!E11-1)&"年中のその他所得額" -> ７年中のその他所得額
B9: 世帯主 | Q9: 3328058 | V9: 円 | AD9: 円 | AL9: 円
B11: 加入者１ | V11: 円 | AD11: 円 | AL11: 円
B13: 加入者２ | V13: 円 | AD13: 円 | AL13: 円
B15: 加入者３ | V15: 円 | AD15: 円 | AL15: 円
B17: 加入者４ | Q17: 0 | V17: 円 | AD17: 円 | AL17: 円
B19: 加入者５ | V19: 円 | AD19: 円 | AL19: 円
B22: 区分 | F22: 医療分 | O22: 支援分 | X22: 介護分 | AG22: 子ども分
F23: = | O23: = | X23: = | AG23: =
B24: 所得割 | F24: =保険料の詳細!Q11 -> 138244 | M24: 円 | O24: =保険料の詳細!Q29 -> 56389 | V24: 円 | X24: =保険料の詳細!Q47 -> 0 | AE24: 円 | AG24: =保険料の詳細!Q64 -> 5093 | AN24: 円
F25: ＋ | O25: ＋ | X25: ＋ | AG25: ＋
B26: 均等割 | F26: =保険料の詳細!Q16 -> 30259 | M26: 円 | O26: =保険料の詳細!Q34 -> 12252 | V26: 円 | X26: =保険料の詳細!Q52 -> 0 | AE26: 円 | AG26: =保険料の詳細!Q69 -> 1157 | AN26: 円
F27: ＋ | O27: ＋ | X27: ＋ | AG27: ＋
B28: 平等割 | F28: =保険料の詳細!Q19 -> 18723 | M28: 円 | O28: =保険料の詳細!Q37 -> 7581 | V28: 円 | X28: =保険料の詳細!Q54 -> 0 | AE28: 円 | AG28: =保険料の詳細!Q73 -> 716 | AN28: 円
AG29: ＋
B30: 18歳以上 均等割 | AG30: =保険料の詳細!Q75 -> 59 | AN30: 円
F32: =パラメーター!A6&TEXT(パラメーター!B6/10000,"#,##万円") -> 賦課限度額67万円 | M32: =パラメーター!A11&TEXT(パラメーター!B11/10000,"#,##万円") -> 賦課限度額26万円 | T32: =パラメーター!A16&TEXT(パラメーター!B16/10000,"#,##万円") -> 賦課限度額17万円 | AA32: =パラメーター!A22&TEXT(パラメーター!B22/10000,"#,##万円") -> 賦課限度額3万円 | AH32: 年間保険料
B33: 合計額 | F33: =IF(F24+F26+F28>=パラメーター!B6,パラメーター!B6,F24+F26+F28) -> 187226 | K33: 円 | L33: + | M33: =IF(O24+O26+O28>=パラメーター!B11,パラメーター!B11,O24+O26+O28) -> 76222 | R33: 円 | S33: + | T33: =IF(X24+X26+X28>=パラメーター!B16,パラメーター!B16,X24+X26+X28) -> 0 | Y33: 円 | Z33: + | AA33: =IF(AG24+AG26+AG28+AG30>=パラメーター!B22,パラメーター!B22,AG24+AG26+AG28+AG30) -> 7025 | AF33: 円 | AG33: = | AH33: =保険料の詳細!Q80 -> 270473 | AN33: 円
B35: =IF(保険料計算!G21=0,"","均等割と平等割が") ->  | J35: =IF(保険料計算!G21=0,"",保険料計算!G22) ->  | L35: =IF(保険料計算!G21=0,"","軽減されています") ->  | AF35: 1ヶ月あたりの保険料 | AH35: =保険料の詳細!Q82 -> 22539.41667 | AN35: 円

Sheet 保険料の詳細 (hidden)
D4: 医療分
H6: ※総所得金額が43万円未満の方の基礎控除額は，総所得金額と同額となります。
D7: 所得割 | F7: 総所得金額 | G7: － | H7: ※基礎控除額(43万円） | I7: ＝ | J7: 算出所得 （千円未満切捨て） | L7: 算出所得合計 | M7: × | N7: 所得割料率
E9: 世帯主 | F9: =IF(保険料計算!C2=1,"",IF(保険料計算!D2=0,"",保険料計算!E2)) -> 2249600 | G9: － | H9: =IF(F9="","",IF(F9<=保険料計算!F2,F9,430000)) -> 430000 | I9: ＝ | J9: =IF(F9="","",IF(F9=0,"",ROUNDDOWN(F9-H9,-3))) -> 1819000 | L9: =SUM(J9:J14) -> 1819000 | M9: × | N9: =パラメーター!B5 -> 0.076 | O9: ＝
E10: 加入者1 | F10: =IF(保険料計算!C3=1,"",保険料計算!E3) ->  | G10: － | H10: =IF(F10="","",IF(F10<=保険料計算!F2,F10,430000)) ->  | I10: ＝
E11: 加入者2 | F11: =IF(保険料計算!C4=1,"",保険料計算!E4) ->  | G11: － | H11: =IF(F11="","",IF(F11<=保険料計算!F2,F11,430000)) ->  | I11: ＝ | Q11: =ROUNDDOWN(L9*N9,0) -> 138244 | R11: … (ア)
E12: 加入者3 | F12: =IF(保険料計算!C5=1,"",保険料計算!E5) ->  | G12: － | H12: =IF(F12="","",IF(F12<=保険料計算!F2,F12,430000)) ->  | I12: ＝
E13: 加入者4 | F13: =IF(保険料計算!C6=1,"",保険料計算!E6) ->  | G13: － | H13: =IF(F13="","",IF(F13<=保険料計算!F2,F13,430000)) ->  | I13: ＝
E14: 加入者5 | F14: =IF(保険料計算!C8=1,"",保険料計算!E7) -> 0 | G14: － | H14: =IF(F14="","",IF(F14<=保険料計算!F2,F14,430000)) -> 0 | I14: ＝
D16: 均等割 | H16: 1人につき | J16: =パラメーター!B3 -> 30259 | K16: × | L16: =保険料計算!L2 -> 1 | M16: ＝ | N16: =J16*L16 -> 30259 | P16: ＝ | Q16: =N16-SUM(N17:O18) -> 30259 | R16: … (イ)
G17: =IF(保険料計算!G21=0,"","減額：") ->  | H17: =IF(保険料計算!G21=0,"",保険料計算!G22) ->  | J17: =IF(保険料計算!G21=0,"",保険料計算!I21) ->  | K17: =IF(保険料計算!G21=0,"","×") ->  | L17: =IF(保険料計算!G21=0,"",保険料計算!L2) ->  | M17: =IF(保険料計算!G21=0,"","=") ->  | N17: =IF(保険料計算!G21=0,"",J17*L17) -> 
G18: =IF(保険料計算!G2=0,"","子ども軽減") ->  | J18: =IF(保険料計算!G2=0,"",保険料計算!N21) ->  | K18: =IF(保険料計算!G2=0,"","×") ->  | L18: =IF(保険料計算!G2=0,"",保険料計算!G2) ->  | M18: =IF(保険料計算!G2=0,"","=") ->  | N18: =IF(保険料計算!G2=0,"",J18*L18) -> 
D19: 平等割 | H19: 1世帯につき | J19: =パラメーター!B4 -> 18723 | N19: =IF(保険料計算!L2=0,"",パラメーター!B4) -> 18723 | P19: ＝ | Q19: =N19-SUM(N20) -> 18723 | R19: … (ウ)
G20: =IF(保険料計算!G21=0,"","減額：") ->  | H20: =IF(保険料計算!G21=0,"",保険料計算!G22) ->  | J20: =IF(保険料計算!G21=0,"",保険料計算!J21) ->  | N20: =J20 -> 
D21: 医療分の保険料 (ア)＋(イ)＋(ウ) | G21: =パラメーター!A6&TEXT(パラメーター!B6/10000,"#,###万円")&"まで" -> 賦課限度額67万円まで | J21: =IF(Q11+Q16+Q19>パラメーター!B6,パラメーター!B6,Q11+Q16+Q19) -> 187226 | S21: … ①
D22: 支援分
H24: ※総所得金額が43万円未満の方の基礎控除額は，総所得金額と同額となります。
D25: 所得割 | F25: 総所得金額 | G25: － | H25: ※基礎控除額(43万円） | I25: ＝ | J25: 算出所得 （千円未満切捨て） | L25: 算出所得合計 | M25: × | N25: 所得割料率
E27: 世帯主 | F27: =IF(保険料計算!C2=1,"",IF(保険料計算!D2=0,"",保険料計算!E2)) -> 2249600 | G27: － | H27: =IF(F27="","",IF(F27<=保険料計算!$F$2,F27,430000)) -> 430000 | I27: ＝ | J27: =IF(F27="","",IF(F27=0,"",ROUNDDOWN(F27-H27,-3))) -> 1819000 | L27: =SUM(J27:J32) -> 1819000 | M27: × | N27: =パラメーター!B10 -> 0.031 | O27: ＝
E28: 加入者1 | F28: =IF(保険料計算!C3=1,"",保険料計算!E3) ->  | G28: － | H28: =IF(F28="","",IF(F28<=保険料計算!$F$2,F28,430000)) ->  | I28: ＝ | J28: =IF(F10="","",IF(F28=0,"",ROUNDDOWN(F28-H28,-3))) -> 
E29: 加入者2 | F29: =IF(保険料計算!C4=1,"",保険料計算!E4) ->  | G29: － | H29: =IF(F29="","",IF(F29<=保険料計算!$F$2,F29,430000)) ->  | I29: ＝ | J29: =IF(F11="","",IF(F29=0,"",ROUNDDOWN(F29-H29,-3))) ->  | Q29: =ROUNDDOWN(L27*N27,0) -> 56389 | R29: … (ア)
E30: 加入者3 | F30: =IF(保険料計算!C5=1,"",保険料計算!E5) ->  | G30: － | H30: =IF(F30="","",IF(F30<=保険料計算!$F$2,F30,430000)) ->  | I30: ＝ | J30: =IF(F12="","",IF(F30=0,"",ROUNDDOWN(F30-H30,-3))) -> 
E31: 加入者4 | F31: =IF(保険料計算!C6=1,"",保険料計算!E6) ->  | G31: － | H31: =IF(F31="","",IF(F31<=保険料計算!$F$2,F31,430000)) ->  | I31: ＝ | J31: =IF(F13="","",IF(F31=0,"",ROUNDDOWN(F31-H31,-3))) -> 
E32: 加入者5 | F32: =IF(保険料計算!C8=1,"",保険料計算!E7) -> 0 | G32: － | H32: =IF(F32="","",IF(F32<=保険料計算!$F$2,F32,430000)) -> 0 | I32: ＝ | J32: =IF(F14="","",IF(F32=0,"",ROUNDDOWN(F32-H32,-3))) -> 
D34: 均等割 | H34: 1人につき | J34: =パラメーター!B8 -> 12252 | K34: × | L34: =保険料計算!L2 -> 1 | M34: ＝ | N34: =J34*L34 -> 12252 | P34: ＝ | Q34: =N34-SUM(N35:O36) -> 12252 | R34: … (イ)
G35: =IF(保険料計算!G27=0,"","減額：") ->  | H35: =IF(保険料計算!G27=0,"",保険料計算!G28) ->  | J35: =IF(保険料計算!G27=0,"",保険料計算!I27) ->  | K35: =IF(保険料計算!G27=0,"","×") ->  | L35: =IF(保険料計算!G27=0,"",保険料計算!L2) ->  | M35: =IF(保険料計算!I27=0,"","=") ->  | N35: =IF(保険料計算!G21=0,"",J35*L35) -> 
G36: =IF(保険料計算!G2=0,"","子ども軽減") ->  | J36: =IF(保険料計算!G2=0,"",保険料計算!N27) ->  | K36: =IF(保険料計算!G2=0,"","×") ->  | L36: =IF(保険料計算!G2=0,"",保険料計算!G2) ->  | M36: =IF(保険料計算!G2=0,"","=") ->  | N36: =IF(保険料計算!G2=0,"",J36*L36) -> 
D37: 平等割 | H37: 1世帯につき | J37: =パラメーター!B9 -> 7581 | N37: =IF(保険料計算!L2=0,"",パラメーター!B9) -> 7581 | P37: ＝ | Q37: =N37-SUM(N38) -> 7581 | R37: … (ウ)
G38: =IF(保険料計算!G27=0,"","減額：") ->  | H38: =IF(保険料計算!G27=0,"",保険料計算!G28) ->  | J38: =IF(保険料計算!G27=0,"",保険料計算!J27) ->  | N38: =J38 -> 
D39: 支援分の保険料 (ア)＋(イ)＋(ウ) | G39: =パラメーター!A11&TEXT(パラメーター!B11/10000,"#,###万円")&"まで" -> 賦課限度額26万円まで | J39: =IF(Q29+Q34+Q37>パラメーター!B11,パラメーター!B11,Q29+Q34+Q37) -> 76222 | S39: … ②
D40: 介護分
E41: ※40歳以上65歳未満の被保険者が対象
H42: ※総所得金額が43万円未満の方の基礎控除額は，総所得金額と同額となります。
D43: 所得割 | F43: 総所得金額 | G43: － | H43: ※基礎控除額(43万円） | I43: ＝ | J43: 算出所得 （千円未満切捨て） | L43: 算出所得合計 | M43: × | N43: 所得割料率
E45: 世帯主 | F45: =IF(保険料計算!C2=5,IF(保険料計算!C2=1,"",保険料計算!E2),"") ->  | G45: － | H45: =IF(F45="","",IF(F45<=保険料計算!$F$2,F45,430000)) ->  | I45: ＝ | J45: =IF(F45="","",IF(F45=0,"",ROUNDDOWN(F45-H45,-3))) ->  | L45: =SUM(J45:J50) -> 0 | M45: × | N45: =パラメーター!B15 -> 0.0311 | O45: ＝
E46: 加入者1 | F46: =IF(保険料計算!C3=5,IF(保険料計算!C3=1,"",保険料計算!E3),"") ->  | G46: － | H46: =IF(F46="","",IF(F46<=保険料計算!$F$2,F46,430000)) ->  | I46: ＝
E47: 加入者2 | F47: =IF(保険料計算!C4=5,IF(保険料計算!C4=1,"",保険料計算!E4),"") ->  | G47: － | H47: =IF(F47="","",IF(F47<=保険料計算!$F$2,F47,430000)) ->  | I47: ＝ | Q47: =ROUNDDOWN(L45*N45,0) -> 0 | R47: … (ア)
E48: 加入者3 | F48: =IF(保険料計算!C5=5,IF(保険料計算!C5=1,"",保険料計算!E5),"") ->  | G48: － | H48: =IF(F48="","",IF(F48<=保険料計算!$F$2,F48,430000)) ->  | I48: ＝
E49: 加入者4 | F49: =IF(保険料計算!C6=5,IF(保険料計算!C6=1,"",保険料計算!E6),"") ->  | G49: － | H49: =IF(F49="","",IF(F49<=保険料計算!$F$2,F49,430000)) ->  | I49: ＝
E50: 加入者5 | F50: =IF(保険料計算!C8=5,IF(保険料計算!C8=1,"",保険料計算!E7),"") ->  | G50: － | H50: =IF(F50="","",IF(F50<=保険料計算!$F$2,F50,430000)) ->  | I50: ＝
D52: 均等割 | H52: 1人につき | J52: =パラメーター!B13 -> 12391 | K52: × | L52: =保険料計算!J2 -> 0 | M52: ＝ | N52: =J52*L52 -> 0 | P52: ＝ | Q52: =N52-SUM(N53) -> 0 | R52: … (イ)
G53: =IF(保険料計算!G33=0,"","減額：") ->  | H53: =IF(保険料計算!G33=0,"",保険料計算!G34) ->  | J53: =IF(保険料計算!G33=0,"",保険料計算!I33) ->  | K53: =IF(保険料計算!G33=0,"","×") ->  | L53: =IF(保険料計算!G33=0,"",保険料計算!J2) ->  | M53: =IF(保険料計算!G33=0,"","=") ->  | N53: =IF(保険料計算!G33=0,"",J53*L53) -> 
D54: 平等割 | H54: 1世帯につき | J54: =パラメーター!B14 -> 6026 | N54: =IF(保険料計算!J2=0,"",パラメーター!B14) ->  | P54: ＝ | Q54: =SUM(N54)-SUM(N55) -> 0 | R54: … (ウ)
G55: =IF(保険料計算!G33=0,"","減額：") ->  | H55: =IF(保険料計算!G33=0,"",保険料計算!G34) ->  | J55: =IF(保険料計算!G33=0,"",保険料計算!J33) ->  | N55: =J55 -> 
D56: 介護分の保険料 (ア)＋(イ)＋(ウ) | G56: =パラメーター!A16&TEXT(パラメーター!B16/10000,"#,###万円")&"まで" -> 賦課限度額17万円まで | J56: =IF(Q47+Q52+Q54>パラメーター!B16,パラメーター!B16,Q47+Q52+Q54) -> 0 | S56: … ③
D57: 子ども分
H59: ※総所得金額が43万円未満の方の基礎控除額は，総所得金額と同額となります。
D60: 所得割 | F60: 総所得金額 | G60: － | H60: ※基礎控除額(43万円） | I60: ＝ | J60: 算出所得 （千円未満切捨て） | L60: 算出所得合計 | M60: × | N60: 所得割料率
E62: 世帯主 | F62: =IF(保険料計算!C2=1,"",IF(保険料計算!D2=0,"",保険料計算!E2)) -> 2249600 | G62: － | H62: =IF(F62="","",IF(F62<=保険料計算!$F$2,F62,430000)) -> 430000 | I62: ＝ | J62: =IF(F62="","",IF(F62=0,"",ROUNDDOWN(F62-H62,-3))) -> 1819000 | L62: =SUM(J62:J67) -> 1819000 | M62: × | N62: =パラメーター!B20 -> 0.0028 | O62: ＝
E63: 加入者1 | F63: =IF(保険料計算!C3=1,"",IF(保険料計算!D3=0,"",保険料計算!E3)) ->  | G63: － | H63: =IF(F63="","",IF(F63<=保険料計算!$F$2,F63,430000)) ->  | I63: ＝
E64: 加入者2 | F64: =IF(保険料計算!C4=1,"",IF(保険料計算!D4=0,"",保険料計算!E4)) ->  | G64: － | H64: =IF(F64="","",IF(F64<=保険料計算!$F$2,F64,430000)) ->  | I64: ＝ | Q64: =ROUNDDOWN(L62*N62,0) -> 5093 | R64: … (ア)
E65: 加入者3 | F65: =IF(保険料計算!C5=1,"",IF(保険料計算!D5=0,"",保険料計算!E5)) ->  | G65: － | H65: =IF(F65="","",IF(F65<=保険料計算!$F$2,F65,430000)) ->  | I65: ＝
E66: 加入者4 | F66: =IF(保険料計算!C6=1,"",IF(保険料計算!D6=0,"",保険料計算!E6)) ->  | G66: － | H66: =IF(F66="","",IF(F66<=保険料計算!$F$2,F66,430000)) ->  | I66: ＝
E67: 加入者5 | F67: =IF(保険料計算!C7=1,"",IF(保険料計算!D7=0,"",保険料計算!E7)) ->  | G67: － | H67: =IF(F67="","",IF(F67<=保険料計算!$F$2,F67,430000)) ->  | I67: ＝
D69: 均等割 | H69: 1人につき | J69: =パラメーター!B18 -> 1157 | K69: × | L69: =保険料計算!L2 -> 1 | M69: ＝ | N69: =J69*L69 -> 1157 | P69: ＝ | Q69: =N69-SUM(N70:N72) -> 1157 | R69: … (イ)
G70: =IF(保険料計算!G39=0,"","減額：") ->  | H70: =IF(保険料計算!G39=0,"",保険料計算!G40) ->  | J70: =IF(保険料計算!G39=0,"",保険料計算!I39) ->  | K70: =IF(保険料計算!G39=0,"","×") ->  | L70: =IF(保険料計算!G39=0,"",保険料計算!L2) ->  | M70: =IF(保険料計算!G39=0,"","=") ->  | N70: =IF(保険料計算!G39=0,"",J70*L70) -> 
G71: =IF(保険料計算!G2=0,"","子ども軽減") ->  | J71: =IF(保険料計算!G2=0,"",保険料計算!N39) ->  | K71: =IF(保険料計算!G2=0,"","×") ->  | L71: =IF(保険料計算!G2=0,"",保険料計算!G2) ->  | M71: =IF(保険料計算!G2=0,"","=") ->  | N71: =IF(保険料計算!G2=0,"",J71*L71) -> 
G72: =IF(AND(保険料計算!G2=0,保険料計算!H2=0),"","18歳未満軽減") ->  | N72: =IF(AND(保険料計算!G2=0,保険料計算!H2=0),"",IF(保険料計算!G2=0,保険料計算!H2*保険料計算!O40,(保険料計算!G2*保険料計算!O39+保険料計算!H2*保険料計算!O40))) -> 
D73: 平等割 | H73: 1世帯につき | J73: =パラメーター!B19 -> 716 | N73: =IF(保険料計算!L2=0,"",パラメーター!B19) -> 716 | P73: ＝ | Q73: =N73-SUM(N74) -> 716 | R73: … (ウ)
G74: =IF(保険料計算!G39=0,"","減額：") ->  | H74: =IF(保険料計算!G39=0,"",保険料計算!G40) ->  | J74: =IF(保険料計算!G39=0,"",保険料計算!J39) ->  | N74: =J74 -> 
D75: 18歳以上 均等割 | H75: 18歳以上被保険者1人につき | J75: =パラメーター!B21 -> 59 | L75: =保険料計算!L4 -> 1 | M75: ＝ | N75: =J75*L75 -> 59 | P75: ＝ | Q75: =N75-SUM(N76) -> 59 | R75: … (ウ)
G76: =IF(保険料計算!G39=0,"","減額：") ->  | H76: =IF(保険料計算!G45=0,"",保険料計算!G46) ->  | J76: =IF(保険料計算!G45=0,"",保険料計算!I45) ->  | L76: =IF(保険料計算!G39=0,"",保険料計算!L4) ->  | N76: =IF(保険料計算!G39=0,"",J76*L76) -> 
D77: 子ども分の保険料 (ア)＋(イ)＋(ウ) | G77: =パラメーター!A22&TEXT(パラメーター!B22/10000,"#,###万円")&"まで" -> 賦課限度額3万円まで | J77: =IF(Q64+Q69+Q73+Q75>パラメーター!B22,パラメーター!B22,Q64+Q69+Q73+Q75) -> 7025 | S77: … ④
J80: 年間 国民健康保険料 【①+②+③+④】 | Q80: =J21+J39+J56+J77 -> 270473
J82: 1ヵ月当たりの国民健康保険料 （年間保険料／12ヶ月） | Q82: =Q80/12 -> 22539.41667

Sheet 保険料計算 (hidden)
A1: 基礎情報 | C1: 加入区分 | D1: 擬主判定 | E1: 総所得金額 | F1: 基礎控除額 | G1: 未就学児 | H1: 小学生から高校生世代まで | I1: １８歳から３９歳まで人数 | J1: ４０歳から６４歳まで人数 | K1: ６５歳から７４歳まで人数 | L1: 合計人数
A2: 年齢区分 | B2: 世帯主 | C2: 6 | D2: =IF(C2=1,0,1) -> 1 | E2: =H11 -> 2249600 | F2: 430000 | G2: =COUNTIF(C2:C8,2) -> 0 | H2: =COUNTIF(C2:C8,3) -> 0 | I2: =COUNTIF(C2:C8,4) -> 0 | J2: =COUNTIF(C2:C8,5) -> 0 | K2: =COUNTIF(C2:C8,6) -> 1 | L2: =G2+H2+I2+J2+K2 -> 1 | M2: =IF(D2=0,IF(B11>550000,L2+1,L2),L2) -> 1
A3: 加入しない | B3: 加入者１ | C3: 1 | E3: =H12 -> 0 | L3: うち18歳以上
A4: 未就学児 | B4: 加入者２ | C4: 1 | E4: 0 | L4: =I2+J2+K2 -> 1
A5: 小学生から高校生世代まで | B5: 加入者３ | C5: 1 | E5: 0
A6: １８歳から３９歳まで | B6: 加入者４ | C6: 1 | E6: 0
A7: ４０歳から６４歳まで | B7: 加入者５ | C7: 1 | E7: 0
A8: ６５歳から７４歳まで
C9: =SUM(加入者) -> 5
A10: 所得内訳 | B10: 給与収入額 | C10: 給与所得額 | D10: 年金収入額 | E10: 年金所得額 | F10: 年金特別控除判定 | G10: その他所得 | H10: 合計所得 | I10: 給与所得額 | J10: 年金所得額 | K10: 給与年金所得控除
A11: 世帯主 | B11: =保険料の概要!Q9 -> 3328058 | C11: =VLOOKUP(D57,D51:J56,7,0)-K11 -> 2249600 | D11: =保険料の概要!Y9 -> 0 | E11: =IF(C2=6,D66,D75) -> 0 | F11: =IF(OR(C2=1,C2=6),IF(D11<=1100000,0,IF(D11>=1250000,-150000,1100000-D11)),0) -> 0 | G11: =保険料の概要!AG9 -> 0 | H11: =C11+E11+G11 -> 2249600 | I11: =VLOOKUP(D57,D51:J56,7,0) -> 2249600 | J11: =IF(C2=6,D66,D75) -> 0 | K11: =IF(IF(I11>100000,100000,I11)+IF(J11>100000,100000,J11)-100000<0,0,IF(I11>100000,100000,I11)+IF(J11>100000,100000,J11)-100000) -> 0
A12: 加入者１ | B12: =保険料の概要!Q11 -> 0 | C12: =VLOOKUP(E57,E51:K56,7,0)-K12 -> 0 | D12: =保険料の概要!Y11 -> 0 | E12: =IF(C3=6,E66,E75) -> 0 | F12: =IF(C3=6,IF(D12<=1100000,0,IF(D12>=1250000,-150000,1100000-D12)),0) -> 0 | G12: =保険料の概要!AG11 -> 0 | H12: =IF(C3>1,C12+E12+G12,0) -> 0 | I12: =VLOOKUP(E57,E51:K56,7,0) -> 0 | J12: =IF(C3=6,E66,E75) -> 0 | K12: =IF(IF(I12>100000,100000,I12)+IF(J12>100000,100000,J12)-100000<0,0,IF(I12>100000,100000,I12)+IF(J12>100000,100000,J12)-100000) -> 0
A13: 加入者２ | B13: =保険料の概要!Q13 -> 0 | C13: =VLOOKUP(F57,F51:L56,7,0)-K13 -> 0 | D13: =保険料の概要!Y13 -> 0 | E13: =IF(C4=6,F66,F75) -> 0 | F13: =IF(C4=6,IF(D13<=1100000,0,IF(D13>=1250000,-150000,1100000-D13)),0) -> 0 | G13: =保険料の概要!AG13 -> 0 | H13: =IF(C4>1,C13+E13+G13,0) -> 0 | I13: =VLOOKUP(F57,F51:L56,7,0) -> 0 | J13: =IF(C4=6,F66,F75) -> 0 | K13: 0
A14: 加入者３ | B14: =保険料の概要!Q15 -> 0 | C14: =VLOOKUP(G57,G51:M56,7,0)-K14 -> 0 | D14: =保険料の概要!Y15 -> 0 | E14: =IF(C5=6,G66,G75) -> 0 | F14: =IF(C5=6,IF(D14<=1100000,0,IF(D14>=1250000,-150000,1100000-D14)),0) -> 0 | G14: =保険料の概要!AG15 -> 0 | H14: =IF(C5>1,C14+E14+G14,0) -> 0 | I14: =VLOOKUP(G57,G51:M56,7,0) -> 0 | J14: =IF(C5=6,G66,G75) -> 0 | K14: 0
A15: 加入者４ | B15: =保険料の概要!Q17 -> 0 | C15: =VLOOKUP(H57,H51:N56,7,0)-K15 -> 0 | D15: =保険料の概要!Y17 -> 0 | E15: =IF(C6=6,H66,H75) -> 0 | F15: =IF(C6=6,IF(D15<=1100000,0,IF(D15>=1250000,-150000,1100000-D15)),0) -> 0 | G15: =保険料の概要!AG17 -> 0 | H15: =IF(C6>1,C15+E15+G15,0) -> 0 | I15: =VLOOKUP(H57,H51:N56,7,0) -> 0 | J15: =IF(C6=6,H66,H75) -> 0 | K15: 0
A16: 加入者５ | B16: =保険料の概要!Q19 -> 0 | C16: =VLOOKUP(I57,I51:O56,7,0)-K16 -> 0 | D16: =保険料の概要!Y19 -> 0 | E16: =IF(C8=6,I66,I75) -> 0 | F16: =IF(C8=6,IF(D16<=1100000,0,IF(D16>=1250000,-150000,1100000-D16)),0) -> 0 | G16: =保険料の概要!AG19 -> 0 | H16: =IF(C8>1,C16+E16+G16,0) -> 0 | I16: =VLOOKUP(I57,I51:O56,7,0) -> 0 | J16: =IF(C8=6,I66,I75) -> 0 | K16: 0
F17: =SUM(F11:F16) -> 0
A19: 軽減
A20: 判定所得 | B20: =SUM(H11:H16)+F17 -> 2249600 | C20: （医）均等割軽減額 | E20: （医）平等割軽減額 | G20: （医）軽減判定 | I20: （医）均等割 | J20: （医）平等割 | K20: （医）未就学児均等割軽減額 | M20: （医）未就学判定 | N20: （医）未就学児軽減
C21: 7 | D21: =ROUNDUP(パラメーター!B3*0.7,0) -> 21182 | E21: 7 | F21: =ROUNDUP(パラメーター!B4*0.7,0) -> 13107 | G21: =VLOOKUP(L2,A28:B34,2,0) -> 0 | H21: 割 | I21: =VLOOKUP(G21,C21:D24,2,0) -> 0 | J21: =VLOOKUP(G21,E21:F24,2,0) -> 0 | K21: 7 | L21: =ROUNDUP(ROUNDDOWN(パラメーター!B3*0.3,0)/2,0) -> 4539 | M21: =IF(G2>=1,G21,0) -> 0 | N21: =VLOOKUP(M21,K21:L24,2,0) -> 15130
C22: 5 | D22: =ROUNDUP(パラメーター!B3*0.5,0) -> 15130 | E22: 5 | F22: =ROUNDUP(パラメーター!B4*0.5,0) -> 9362 | G22: =CONCATENATE(G21,H21) -> 0割 | K22: 5 | L22: =ROUNDUP(ROUNDDOWN(パラメーター!B3*0.5,0)/2,0) -> 7565
C23: 2 | D23: =ROUNDUP(パラメーター!B3*0.2,0) -> 6052 | E23: 2 | F23: =ROUNDUP(パラメーター!B4*0.2,0) -> 3745 | K23: 2 | L23: =ROUNDUP(ROUNDDOWN(パラメーター!B3*0.8,0)/2,0) -> 12104
C24: 0 | E24: 0 | K24: 0 | L24: =ROUNDUP(パラメーター!B3/2,0) -> 15130
C26: （支）均等割軽減額 | E26: （支）平等割軽減額 | G26: （支）軽減判定 | I26: （支）均等割 | J26: （支）平等割 | K26: （支）未就学児均等割軽減額 | M26: （支）未就学判定 | N26: （支）未就学児軽減
A27: 人数 | B27: 軽減割合 | C27: 7 | D27: =ROUNDUP(パラメーター!B8*0.7,0) -> 8577 | E27: 7 | F27: =ROUNDUP(パラメーター!B9*0.7,0) -> 5307 | G27: =G21 -> 0 | H27: =H21 -> 割 | I27: =VLOOKUP(G27,C27:D30,2,0) -> 0 | J27: =VLOOKUP(G27,E27:F30,2,0) -> 0 | K27: 7 | L27: =ROUNDUP(ROUNDDOWN(パラメーター!B8*0.3,0)/2,0) -> 1838 | M27: =IF(G2>=1,G27,0) -> 0 | N27: =VLOOKUP(M27,K27:L30,2,0) -> 6126
A28: 1 | B28: =MAX(パラメーター!C25,パラメーター!E25,パラメーター!G25) -> 0 | C28: 5 | D28: =ROUNDUP(パラメーター!B8*0.5,0) -> 6126 | E28: 5 | F28: =ROUNDUP(パラメーター!B9*0.5,0) -> 3791 | G28: =G22 -> 0割 | K28: 5 | L28: =ROUNDUP(ROUNDDOWN(パラメーター!B8*0.5,0)/2,0) -> 3063
A29: 2 | B29: =MAX(パラメーター!C26,パラメーター!E26,パラメーター!G26) -> 0 | C29: 2 | D29: =ROUNDUP(パラメーター!B8*0.2,0) -> 2451 | E29: 2 | F29: =ROUNDUP(パラメーター!B9*0.2,0) -> 1517 | K29: 2 | L29: =ROUNDUP(ROUNDDOWN(パラメーター!B8*0.8,0)/2,0) -> 4901
A30: 3 | B30: =MAX(パラメーター!C27,パラメーター!E27,パラメーター!G27) -> 0 | C30: 0 | E30: 0 | K30: 0 | L30: =ROUNDUP(パラメーター!B8/2,0) -> 6126
A31: 4 | B31: =MAX(パラメーター!C28,パラメーター!E28,パラメーター!G28) -> 2
A32: 5 | B32: =MAX(パラメーター!C29,パラメーター!E29,パラメーター!G29) -> 2 | C32: （介）均等割軽減額 | E32: （介）平等割軽減額 | G32: （介）軽減判定 | I32: （介）均等割 | J32: （介）平等割
A33: 6 | B33: =MAX(パラメーター!C30,パラメーター!E30,パラメーター!G30) -> 5 | C33: 7 | D33: =ROUNDUP(パラメーター!B13*0.7,0) -> 8674 | E33: 7 | F33: =ROUNDUP(パラメーター!B14*0.7,0) -> 4219 | G33: =IF(J2>=1,G21,0) -> 0 | H33: 割 | I33: =VLOOKUP(G33,C33:D36,2,0) -> 0 | J33: =VLOOKUP(G33,E33:F36,2,0) -> 0
A34: 0 | C34: 5 | D34: =ROUNDUP(パラメーター!B13*0.5,0) -> 6196 | E34: 5 | F34: =ROUNDUP(パラメーター!B14*0.5,0) -> 3013 | G34: =CONCATENATE(G33,H33) -> 0割
C35: 2 | D35: =ROUNDUP(パラメーター!B13*0.2,0) -> 2479 | E35: 2 | F35: =ROUNDUP(パラメーター!B14*0.2,0) -> 1206
C36: 0 | E36: 0
C38: （子）均等割軽減額 | E38: （子）平等割軽減額 | G38: （子）軽減判定 | I38: （子）均等割 | J38: （子）平等割 | K38: （子）未就学児均等割軽減額 | M38: （子）未就学判定 | N38: （子）未就学児軽減 | O38: 18歳未満軽減
C39: 7 | D39: =ROUNDUP(パラメーター!B18*0.7,0) -> 810 | E39: 7 | F39: =ROUNDUP(パラメーター!B19*0.7,0) -> 502 | G39: =G21 -> 0 | H39: 割 | I39: =VLOOKUP(G39,C39:D42,2,0) -> 0 | J39: =VLOOKUP(G39,E39:F42,2,0) -> 0 | K39: 7 | L39: =ROUNDUP(ROUNDDOWN(パラメーター!B18*0.3,0)/2,0) -> 174 | M39: =IF(G2>=1,G39,0) -> 0 | N39: =VLOOKUP(M39,K39:L42,2,0) -> 579 | O39: =パラメーター!B18-I39-N39 -> 578 | P39: 未就学児
C40: 5 | D40: =ROUNDUP(パラメーター!B18*0.5,0) -> 579 | E40: 5 | F40: =ROUNDUP(パラメーター!B19*0.5,0) -> 358 | G40: =CONCATENATE(G39,H39) -> 0割 | K40: 5 | L40: =ROUNDUP(ROUNDDOWN(パラメーター!B18*0.5,0)/2,0) -> 289 | O40: =パラメーター!B18-I39 -> 1157 | P40: 小学生～高校生
C41: 2 | D41: =ROUNDUP(パラメーター!B18*0.2,0) -> 232 | E41: 2 | F41: =ROUNDUP(パラメーター!B19*0.2,0) -> 144 | K41: 2 | L41: =ROUNDUP(ROUNDDOWN(パラメーター!B18*0.8,0)/2,0) -> 463
C42: 0 | E42: 0 | K42: 0 | L42: =ROUNDUP(パラメーター!B18/2,0) -> 579
C44: （子）18均等割軽減額 | G44: （子）18軽減判定 | I44: （子）18均等割
C45: 7 | D45: =ROUNDUP(パラメーター!B21*0.7,0) -> 42 | G45: =G21 -> 0 | H45: 割 | I45: =VLOOKUP(G45,C45:D48,2,0) -> 0
C46: 5 | D46: =ROUNDUP(パラメーター!B21*0.5,0) -> 30 | G46: =CONCATENATE(G45,H45) -> 0割
C47: 2 | D47: =ROUNDUP(パラメーター!B21*0.2,0) -> 12
C48: 0
J49: 給与所得額
A50: 給与所得計算 | B50: 給与収入 | D50: 世帯主 | E50: 加入者１ | F50: 加入者２ | G50: 加入者３ | H50: 加入者４ | I50: 加入者５ | J50: 世帯主 | K50: 加入者１ | L50: 加入者２ | M50: 加入者３ | N50: 加入者４ | O50: 加入者５
B51: 0 | C51: 650999 | D51: =IF($B11<=$C51,0,"") ->  | E51: =IF($B$12<=$C51,0,"") -> 0 | F51: =IF($B$13<=$C51,0,"") -> 0 | G51: =IF($B$14<=$C51,0,"") -> 0 | H51: =IF($B$15<=$C51,0,"") -> 0 | I51: =IF($B$16<=$C51,0,"") -> 0 | J51: 0 | K51: 0 | L51: 0 | M51: 0 | N51: 0 | O51: 0
B52: 651000 | C52: 1899999 | D52: =IF(B11<=C52,1,"") ->  | E52: =IF($B$12<=$C52,1,"") -> 1 | F52: =IF($B$13<=$C52,1,"") -> 1 | G52: =IF($B$14<=$C52,1,"") -> 1 | H52: =IF($B$15<=$C52,1,"") -> 1 | I52: =IF($B$16<=$C52,1,"") -> 1 | J52: =B11-650000 -> 2678058 | K52: =B12-650000 -> -650000 | L52: =B13-650000 -> -650000 | M52: =B14-650000 -> -650000 | N52: =B15-650000 -> -650000 | O52: =B16-650000 -> -650000
B53: 1900000 | C53: 3599999 | D53: =IF(B11<=C53,2,"") -> 2 | E53: =IF($B$12<=$C53,2,"") -> 2 | F53: =IF($B$13<=$C53,2,"") -> 2 | G53: =IF($B$14<=$C53,2,"") -> 2 | H53: =IF($B$15<=$C53,2,"") -> 2 | I53: =IF($B$16<=$C53,2,"") -> 2 | J53: =ROUNDDOWN(B11/4,-3)*2.8-80000 -> 2249600 | K53: =ROUNDDOWN(B12/4,-3)*2.8-80000 -> -80000 | L53: =ROUNDDOWN(B13/4,-3)*2.8-80000 -> -80000 | M53: =ROUNDDOWN(B14/4,-3)*2.8-80000 -> -80000 | N53: =ROUNDDOWN(B15/4,-3)*2.8-80000 -> -80000 | O53: =ROUNDDOWN(B16/4,-3)*2.8-80000 -> -80000
B54: 3600000 | C54: 6599999 | D54: =IF(B11<=C54,3,"") -> 3 | E54: =IF($B$12<=$C54,3,"") -> 3 | F54: =IF($B$13<=$C54,3,"") -> 3 | G54: =IF($B$14<=$C54,3,"") -> 3 | H54: =IF($B$15<=$C54,3,"") -> 3 | I54: =IF($B$16<=$C54,3,"") -> 3 | J54: =ROUNDDOWN(B11/4,-3)*3.2-440000 -> 2222400 | K54: =ROUNDDOWN(B12/4,-3)*3.2-440000 -> -440000 | L54: =ROUNDDOWN(B13/4,-3)*3.2-440000 -> -440000 | M54: =ROUNDDOWN(B14/4,-3)*3.2-440000 -> -440000 | N54: =ROUNDDOWN(B15/4,-3)*3.2-440000 -> -440000 | O54: =ROUNDDOWN(B16/4,-3)*3.2-440000 -> -440000
B55: 6600000 | C55: 8499999 | D55: =IF(B11<C55,4,"") -> 4 | E55: =IF($B$12<=$C55,4,"") -> 4 | F55: =IF($B$13<=$C55,4,"") -> 4 | G55: =IF($B$14<=$C55,4,"") -> 4 | H55: =IF($B$15<=$C55,4,"") -> 4 | I55: =IF($B$16<=$C55,4,"") -> 4 | J55: =B11*0.9-1100000 -> 1895252.2 | K55: =B12*0.9-1100000 -> -1100000 | L55: =B13*0.9-1100000 -> -1100000 | M55: =B14*0.9-1100000 -> -1100000 | N55: =B15*0.9-1100000 -> -1100000 | O55: =B16*0.9-1100000 -> -1100000
B56: 8500000 | D56: =IF(B11>=C56,5,"") -> 5 | E56: =IF($B$12<=$C56,5,"") -> 5 | F56: =IF($B$13<=$C56,5,"") -> 5 | G56: =IF($B$14<=$C56,5,"") -> 5 | H56: =IF($B$15<=$C56,5,"") -> 5 | I56: =IF($B$16<=$C56,5,"") -> 5 | J56: =B11-1950000 -> 1378058 | K56: =B12-1950000 -> -1950000 | L56: =B13-1950000 -> -1950000 | M56: =B14-1950000 -> -1950000 | N56: =B15-1950000 -> -1950000 | O56: =B16-1950000 -> -1950000
D57: =MIN(D51:D56) -> 2 | E57: 0 | F57: 0 | G57: 0 | H57: 0 | I57: 0
A59: 年金所得計算 | B59: 年金収入_６５歳以上 | D59: 世帯主 | E59: 加入者１ | F59: 加入者２ | G59: 加入者３ | H59: 加入者４ | I59: 加入者５ | J59: 世帯主 | K59: 加入者１ | L59: 加入者２ | M59: 加入者３ | N59: 加入者４ | O59: 加入者５
B60: 0 | C60: 1100000 | D60: =IF($D$11<=$C60,0,"") -> 0 | E60: =IF($D$12<=$C60,0,"") -> 0 | F60: =IF($D$13<=$C60,0,"") -> 0 | G60: =IF($D$14<=$C60,0,"") -> 0 | H60: =IF($D$15<=$C60,0,"") -> 0 | I60: =IF($D$16<=$C60,0,"") -> 0 | J60: 0 | K60: 0 | L60: 0 | M60: 0 | N60: 0 | O60: 0
B61: 1100001 | C61: 3299999 | D61: =IF($D$11<=C61,1,"") -> 1 | E61: =IF($D$12<=$C61,1,"") -> 1 | F61: =IF($D$13<=$C61,1,"") -> 1 | G61: =IF($D$14<=$C61,1,"") -> 1 | H61: =IF($D$15<=$C61,1,"") -> 1 | I61: =IF($D$16<=$C61,1,"") -> 1 | J61: =D11-1100000 -> -1100000 | K61: =D12-1100000 -> -1100000 | L61: =D13-1100000 -> -1100000 | M61: =D14-1100000 -> -1100000 | N61: =D15-1100000 -> -1100000 | O61: =D16-1100000 -> -1100000
B62: 3300000 | C62: 4099999 | D62: =IF($D$11<=C62,2,"") -> 2 | E62: =IF($D$12<=$C62,2,"") -> 2 | F62: =IF($D$13<=$C62,2,"") -> 2 | G62: =IF($D$14<=$C62,2,"") -> 2 | H62: =IF($D$15<=$C62,2,"") -> 2 | I62: =IF($D$16<=$C62,2,"") -> 2 | J62: =D11*0.75-275000 -> -275000 | K62: =D12*0.75-275000 -> -275000 | L62: =D13*0.75-275000 -> -275000 | M62: =D14*0.75-275000 -> -275000 | N62: =D15*0.75-275000 -> -275000 | O62: =D16*0.75-275000 -> -275000
B63: 4100000 | C63: 7699999 | D63: =IF($D$11<=C63,3,"") -> 3 | E63: =IF($D$12<=$C63,3,"") -> 3 | F63: =IF($D$13<=$C63,3,"") -> 3 | G63: =IF($D$14<=$C63,3,"") -> 3 | H63: =IF($D$15<=$C63,3,"") -> 3 | I63: =IF($D$16<=$C63,3,"") -> 3 | J63: =D11*0.85-685000 -> -685000 | K63: =D12*0.85-685000 -> -685000 | L63: =D13*0.85-685000 -> -685000 | M63: =D14*0.85-685000 -> -685000 | N63: =D15*0.85-685000 -> -685000 | O63: =D16*0.85-685000 -> -685000
B64: 7700000 | C64: 9999999 | D64: =IF($D$11>=B64,4,"") ->  | E64: =IF(D12>=$B$64,4,"") ->  | F64: =IF(D13>=$B$64,4,"") ->  | G64: =IF(D14>=$B$64,4,"") ->  | H64: =IF(D15>=$B$64,4,"") ->  | I64: =IF(D16>=$B$64,4,"") ->  | J64: =D11*0.95-1455000 -> -1455000 | K64: =D12*0.95-1455000 -> -1455000 | L64: =D13*0.95-1455000 -> -1455000 | M64: =D14*0.95-1455000 -> -1455000 | N64: =D15*0.95-1455000 -> -1455000 | O64: =D16*0.95-1455000 -> -1455000
D65: =MIN(D60:D64) -> 0 | E65: 0 | F65: 0 | G65: 0 | H65: 0 | I65: 0
D66: =VLOOKUP(D65,D60:J64,7,0) -> 0 | E66: 0 | F66: 0 | G66: 0 | H66: 0 | I66: 0
B68: 年金収入_６４歳未満 | D68: 世帯主 | E68: 加入者１ | F68: 加入者２ | G68: 加入者３ | H68: 加入者４ | I68: 加入者５ | J68: 世帯主 | K68: 加入者１ | L68: 加入者２ | M68: 加入者３ | N68: 加入者４ | O68: 加入者５
B69: 0 | C69: 600000 | D69: =IF($D$11<=$C69,0,"") -> 0 | E69: =IF($D$12<=$C69,0,"") -> 0 | F69: =IF($D$13<=$C69,0,"") -> 0 | G69: =IF($D$14<=$C69,0,"") -> 0 | H69: =IF($D$15<=$C69,0,"") -> 0 | I69: =IF($D$16<=$C69,0,"") -> 0 | J69: 0 | K69: 0 | L69: 0 | M69: 0 | N69: 0 | O69: 0
B70: 600001 | C70: 1299999 | D70: =IF($D$11<=C70,1,"") -> 1 | E70: =IF($D$12<=$C70,1,"") -> 1 | F70: =IF($D$13<=$C70,1,"") -> 1 | G70: =IF($D$14<=$C70,1,"") -> 1 | H70: =IF($D$15<=$C70,1,"") -> 1 | I70: =IF($D$16<=$C70,1,"") -> 1 | J70: =D11-600000 -> -600000 | K70: =D12-600000 -> -600000 | L70: =D13-600000 -> -600000 | M70: =D14-600000 -> -600000 | N70: =D15-600000 -> -600000 | O70: =D16-600000 -> -600000
B71: 1300000 | C71: 4099999 | D71: =IF($D$11<=C71,2,"") -> 2 | E71: =IF($D$12<=$C71,2,"") -> 2 | F71: =IF($D$13<=$C71,2,"") -> 2 | G71: =IF($D$14<=$C71,2,"") -> 2 | H71: =IF($D$15<=$C71,2,"") -> 2 | I71: =IF($D$16<=$C71,2,"") -> 2 | J71: =D11*0.75-275000 -> -275000 | K71: =D12*0.75-275000 -> -275000 | L71: =D13*0.75-275000 -> -275000 | M71: =D14*0.75-275000 -> -275000 | N71: =D15*0.75-275000 -> -275000 | O71: =D16*0.75-275000 -> -275000
B72: 4100000 | C72: 7699999 | D72: =IF($D$11<=C72,3,"") -> 3 | E72: =IF($D$12<=$C72,3,"") -> 3 | F72: =IF($D$13<=$C72,3,"") -> 3 | G72: =IF($D$14<=$C72,3,"") -> 3 | H72: =IF($D$15<=$C72,3,"") -> 3 | I72: =IF($D$16<=$C72,3,"") -> 3 | J72: =D11*0.85-685000 -> -685000 | K72: =D12*0.85-685000 -> -685000 | L72: =D13*0.85-685000 -> -685000 | M72: =D14*0.85-685000 -> -685000 | N72: =D15*0.85-685000 -> -685000 | O72: =D16*0.85-685000 -> -685000
B73: 7700000 | C73: 9999999 | D73: =IF($D$11>=B73,4,"") ->  | E73: =IF(D12>=$B$64,4,"") ->  | F73: =IF(D13>=$B$64,4,"") ->  | G73: =IF(D14>=$B$64,4,"") ->  | H73: =IF(D15>=$B$64,4,"") ->  | I73: =IF(D16>=$B$64,4,"") ->  | J73: =D11*0.95-1455000 -> -1455000 | K73: =D12*0.95-1455000 -> -1455000 | L73: =D13*0.95-1455000 -> -1455000 | M73: =D14*0.95-1455000 -> -1455000 | N73: =D15*0.95-1455000 -> -1455000 | O73: =D16*0.95-1455000 -> -1455000
D74: =MIN(D69:D73) -> 0 | E74: 0 | F74: 0 | G74: 0 | H74: 0 | I74: 0
D75: =VLOOKUP(D74,D69:J73,7,0) -> 0 | E75: 0 | F75: 0 | G75: 0 | H75: 0 | I75: 0

Sheet パラメーター (hidden)
A1: 料率等パラメーター
A2: 医療分 | L2: 給与 所得者数 | M2: 一般収入 | N2: 年金収入 65歳未満 | O2: 年金収入 65歳以上 | P2: 合計 | Q2: 計算値 | R2: 控除額
A3: 均等割 | B3: 30259 | R3: 100000
A4: 平等割 | B4: 18723 | L4: 1 | M4: =IF(保険料計算!B11>550000,1,0) -> 1 | N4: =IF(保険料計算!C2=3,IF(保険料計算!D11>600000,1,0),0) -> 0 | O4: =IF(保険料計算!C2=4,IF(保険料計算!D11>1250000,1,0),0) -> 0 | P4: =SUM(M4:O4) -> 1 | Q4: =MAX(P4-1,) -> 0
A5: 所得割 | B5: 0.076 | L5: 2 | M5: =IF(保険料計算!B12>550000,M4+1,M4) -> 1 | N5: =IF(保険料計算!C3=3,IF(保険料計算!D12>600000,N4+1,N4),N4) -> 0 | O5: =IF(保険料計算!C3=4,IF(保険料計算!D12>1250000,O4+1,O4),O4) -> 0 | P5: =SUM(M5:O5) -> 1 | Q5: =MAX(P5-1,) -> 0
A6: 賦課限度額 | B6: 670000 | L6: 3 | M6: =IF(保険料計算!B13>550000,M5+1,M5) -> 1 | N6: =IF(保険料計算!C4=3,IF(保険料計算!D13>600000,N5+1,N5),N5) -> 0 | O6: =IF(保険料計算!C4=4,IF(保険料計算!D13>1250000,O5+1,O5),O5) -> 0 | P6: 1 | Q6: 0
A7: 支援分 | L7: 4 | M7: =IF(保険料計算!B14>550000,M6+1,M6) -> 1 | N7: =IF(保険料計算!C5=3,IF(保険料計算!D14>600000,N6+1,N6),N6) -> 0 | O7: =IF(保険料計算!C5=4,IF(保険料計算!D14>1250000,O6+1,O6),O6) -> 0 | P7: 1 | Q7: 0
A8: 均等割 | B8: 12252 | L8: 5 | M8: =IF(保険料計算!B15>550000,M7+1,M7) -> 1 | N8: =IF(保険料計算!C6=3,IF(保険料計算!D15>600000,N7+1,N7),N7) -> 0 | O8: =IF(保険料計算!C6=4,IF(保険料計算!D15>1250000,O7+1,O7),O7) -> 0 | P8: 1 | Q8: 0
A9: 平等割 | B9: 7581 | L9: 6 | M9: =IF(保険料計算!B16>550000,M8+1,M8) -> 1 | N9: =IF(保険料計算!C8=3,IF(保険料計算!D16>600000,N8+1,N8),N8) -> 0 | O9: =IF(保険料計算!C8=4,IF(保険料計算!D16>1250000,O8+1,O8),O8) -> 0 | P9: 1 | Q9: 0
A10: 所得割 | B10: 0.031
A11: 賦課限度額 | B11: 260000 | D11: 年度 | E11: 8
A12: 介護分
A13: 均等割 | B13: 12391
A14: 平等割 | B14: 6026
A15: 所得割 | B15: 0.0311
A16: 賦課限度額 | B16: 170000
A17: 子ども分
A18: 均等割 | B18: 1157
A19: 平等割 | B19: 716
A20: 所得割 | B20: 0.0028
A21: 18歳以上均等割 | B21: 59
A22: 賦課限度額 | B22: 30000
A24: 軽減判定パラメーター | B24: ７割 | C24: 430000 | D24: ５割 | E24: 310000 | F24: ２割 | G24: 570000
A25: 1 | B25: =$C$24 -> 430000 | C25: =IF(B25>=保険料計算!$B$20,7,"") ->  | D25: =430000+A25*$E$24 -> 740000 | E25: =IF(D25>=保険料計算!$B$20,5,"") ->  | F25: =430000+A25*$G$24 -> 1000000 | G25: =IF(F25>=保険料計算!$B$20,2,"") -> 
A26: 2 | B26: =$C$24+$R$3*Q5 -> 430000 | C26: =IF(B26>=保険料計算!$B$20,7,"") ->  | D26: =430000+A26*$E$24+$R$3*Q5 -> 1050000 | E26: =IF(D26>=保険料計算!$B$20,5,"") ->  | F26: =430000+A26*$G$24+$R$3*Q5 -> 1570000 | G26: =IF(F26>=保険料計算!$B$20,2,"") -> 
A27: 3 | B27: =$C$24+$R$3*Q6 -> 430000 | C27: =IF(B27>=保険料計算!$B$20,7,"") ->  | D27: =430000+A27*$E$24+$R$3*Q6 -> 1360000 | E27: =IF(D27>=保険料計算!$B$20,5,"") ->  | F27: =430000+A27*$G$24+$R$3*Q6 -> 2140000 | G27: =IF(F27>=保険料計算!$B$20,2,"") -> 
A28: 4 | B28: =$C$24+$R$3*Q7 -> 430000 | C28: =IF(B28>=保険料計算!$B$20,7,"") ->  | D28: =430000+A28*$E$24+$R$3*Q7 -> 1670000 | E28: =IF(D28>=保険料計算!$B$20,5,"") ->  | F28: =430000+A28*$G$24+$R$3*Q7 -> 2710000 | G28: =IF(F28>=保険料計算!$B$20,2,"") -> 2
A29: 5 | B29: =$C$24+$R$3*Q8 -> 430000 | C29: =IF(B29>=保険料計算!$B$20,7,"") ->  | D29: =430000+A29*$E$24+$R$3*Q8 -> 1980000 | E29: =IF(D29>=保険料計算!$B$20,5,"") ->  | F29: =430000+A29*$G$24+$R$3*Q8 -> 3280000 | G29: =IF(F29>=保険料計算!$B$20,2,"") -> 2
A30: 6 | B30: =$C$24+$R$3*Q9 -> 430000 | C30: =IF(B30>=保険料計算!$B$20,7,"") ->  | D30: =430000+A30*$E$24+$R$3*Q9 -> 2290000 | E30: =IF(D30>=保険料計算!$B$20,5,"") -> 5 | F30: =430000+A30*$G$24+$R$3*Q9 -> 3850000 | G30: =IF(F30>=保険料計算!$B$20,2,"") -> 2
A33: ="令和"&DBCS(E11)&"年度尼崎市国民健康保険料試算表の利用について" -> 令和８年度尼崎市国民健康保険料試算表の利用について
A34: ="令和"&DBCS(E11)&"年度尼崎市国民健康保険料試算表の利用につきまして、下記の注意点をよくお読みいただき、ご利用をお願いいたします。" -> 令和８年度尼崎市国民健康保険料試算表の利用につきまして、下記の注意点をよくお読みいただき、ご利用をお願いいたします。
A35: ="令和"&DBCS(E11)&"年度尼崎市国民健康保険料の試算表" -> 令和８年度尼崎市国民健康保険料の試算表
A36: ="令和"&DBCS(E11)&"年度尼崎市国民健康保険料 計算式詳細" -> 令和８年度尼崎市国民健康保険料 計算式詳細
A37: ="この試算表では、令和"&DBCS(E11)&"年度のおおよその年間保険料と1ヶ月あたりの月額保険料の計算ができます。" -> この試算表では、令和８年度のおおよその年間保険料と1ヶ月あたりの月額保険料の計算ができます。
A38: ="年金収入があり、令和"&DBCS(E11)&"年１月２日以降に６５歳になられた場合" -> 年金収入があり、令和８年１月２日以降に６５歳になられた場合
A39: ="保険料の料率は毎年改定されます。令和６年度の試算に使用される場合は、令和５年度の料率を使用した場合の参考の保険料額としてご使用ください。（"&DBCS(E11-1)&"年度以前の保険料額については、お問い合わせください。）" -> 保険料の料率は毎年改定されます。令和６年度の試算に使用される場合は、令和５年度の料率を使用した場合の参考の保険料額としてご使用ください。（７年度以前の保険料額については、お問い合わせください。）
